bitfinex-derivatives/quotes_BTCF0:USTF0_20250928
["timestamp","ask_amount","ask_price","bid_price","bid_amount"]
[1759097225269,2.30582126,111590.0,111580.0,7e-08]
[1759097225468,0.0896045,111560.0,111550.0,0.3608]
[1759097225669,0.39373226,111560.0,111550.0,0.3608]
[1759097225871,0.11007145,111560.0,111550.0,0.37378]
[1759097226271,0.02046695,111560.0,111550.0,0.37378]
[1759097226472,0.38282033,111590.0,111560.0,0.01298]
[1759097226670,1.03417975,111590.0,111570.0,0.37378]
[1759097226873,0.30412056,111590.0,111580.0,0.01298]
[1759097227072,1.45768056,111590.0,111580.0,0.37378]
[1759097227273,1.94726616,111590.0,111570.0,0.37378]
[1759097227576,0.28366081,111580.0,111570.0,0.37378]
[1759097227976,1.17401975,111590.0,111580.0,0.01298]
[1759097228173,1.54725896,111590.0,111570.0,0.37378]
[1759097228375,1.17401975,111590.0,111570.0,0.37378]
[1759097228575,0.28366081,111580.0,111570.0,0.37378]
[1759097230177,1.17401975,111590.0,111570.0,0.37378]
[1759097230377,0.28366081,111580.0,111570.0,0.37378]
[1759097230874,0.28366081,111580.0,111560.0,0.37378]
[1759097230875,0.11062267,111570.0,111560.0,0.37378]
[1759097231074,0.39428348,111570.0,111560.0,0.37378]
[1759097231380,0.02102827,111570.0,111560.0,0.37378]
[1759097232177,0.02102827,111570.0,111560.0,0.77378]
[1759097232374,0.02102827,111570.0,111560.0,0.8633824]
[1759097232876,0.02102827,111570.0,111560.0,0.77378]
[1759097233278,0.02102827,111570.0,111560.0,0.8633824]
[1759097233475,0.02102827,111570.0,111560.0,0.77378]
[1759097234988,0.02102827,111570.0,111560.0,0.37378]
[1759097235584,0.39428178,111570.0,111560.0,0.37378]
[1759097236282,1.93720178,111570.0,111560.0,0.3608]
[1759097236484,1.96877193,111570.0,111560.0,0.3608]
[1759097236677,0.05259842,111570.0,111560.0,0.37448]
[1759097236881,0.02102827,111570.0,111560.0,0.37448]
[1759097237081,0.02102827,111570.0,111560.0,0.38797935]
[1759097237888,0.11062187,111570.0,111560.0,0.38797935]
[1759097238281,0.43625687,111570.0,111560.0,0.38797935]
[1759097238482,0.41248334,111570.0,111560.0,0.38797935]
[1759097238991,0.44405349,111570.0,111560.0,0.38797935]
[1759097239197,0.11841849,111570.0,111560.0,0.38797935]
[1759097239687,0.0211905,111570.0,111560.0,0.38797935]
[1759097239890,0.0211905,111570.0,111560.0,0.37448]
[1759097241483,0.42301762,111580.0,111570.0,0.0139]
[1759097241684,0.42301762,111580.0,111570.0,0.3747]
[1759097241881,0.12115615,111580.0,111570.0,0.3747]
[1759097242090,0.44679115,111580.0,111570.0,0.3747]
[1759097242492,0.12115615,111580.0,111570.0,0.3747]
[1759097242795,0.44679115,111580.0,111570.0,0.3747]
[1759097243495,0.84679115,111580.0,111570.0,0.3608]
[1759097243690,0.0895931,111570.0,111560.0,0.3608]
[1759097243992,2.01558678,111570.0,111560.0,0.3608]
[1759097244588,0.0896004,111560.0,111550.0,0.37378]
[1759097244893,0.12177738,111560.0,111550.0,0.37378]
[1759097245088,0.44741238,111560.0,111550.0,0.37378]
[1759097245497,0.12177738,111560.0,111550.0,0.37378]
[1759097245789,0.14301744,111570.0,111560.0,0.0139]
[1759097245990,0.02125254,111570.0,111560.0,0.3747]
[1759097246288,1.14977254,111570.0,111560.0,0.3747]
[1759097246494,1.23936464,111570.0,111560.0,0.3747]
[1759097246897,1.14977254,111570.0,111560.0,0.3747]
[1759097247089,1.23936464,111570.0,111560.0,0.3747]
[1759097247491,1.19440061,111570.0,111560.0,0.3747]
[1759097247696,1.21513598,111570.0,111560.0,0.3747]
[1759097247892,1.57293998,111570.0,111560.0,0.3747]
[1759097248099,1.54077098,111570.0,111560.0,0.3747]
[1759097248302,0.43596247,111570.0,111560.0,0.3747]
[1759097248594,1.56020247,111570.0,111560.0,0.3747]
[1759097250101,1.96020247,111570.0,111560.0,0.0139]
[1759097250298,1.63456747,111570.0,111560.0,0.0139]
[1759097250497,1.96020247,111570.0,111560.0,0.0139]
[1759097250691,0.0896001,111560.0,111550.0,0.37378]
[1759097250899,0.44742671,111560.0,111550.0,0.01298]
[1759097251197,0.0896082,111550.0,111540.0,0.37378]
[1759097251398,0.46838305,111550.0,111540.0,0.37378]
[1759097251588,1.58890305,111550.0,111540.0,0.37378]
[1759097251992,1.58890305,111550.0,111540.0,0.01298]
[1759097252695,1.62406805,111550.0,111540.0,0.01298]
[1759097252992,1.94970305,111550.0,111540.0,0.01298]
[1759097253592,0.78421902,111550.0,111540.0,0.01298]
[1759097253790,1.53905902,111550.0,111540.0,0.01298]
[1759097254190,1.53905902,111550.0,111540.0,0.37378]
[1759097255803,1.53905902,111550.0,111540.0,0.39508]
[1759097255997,0.09778402,111550.0,111540.0,0.39508]
[1759097256207,1.50251039,111550.0,111540.0,0.39508]
[1759097256392,1.50251039,111550.0,111540.0,0.2635771]
[1759097256598,0.04465217,111540.0,111530.0,0.37521]
[1759097256797,0.37028717,111540.0,111530.0,0.39651]
[1759097257300,0.37028717,111540.0,111530.0,0.37521]
[1759097257806,1.15469217,111540.0,111530.0,0.39651]
[1759097258005,0.04465217,111540.0,111530.0,0.39651]
[1759097258302,0.04465217,111540.0,111530.0,0.79651]
[1759097259409,0.04465217,111540.0,111530.0,0.39651]
[1759097259802,0.39115984,111550.0,111540.0,0.0352]
[1759097260108,1.49631984,111550.0,111540.0,0.396]
[1759097260701,1.17068484,111550.0,111540.0,0.396]
[1759097260903,1.49631984,111550.0,111540.0,0.396]
[1759097261308,1.17068484,111550.0,111540.0,0.396]
[1759097261497,1.49631984,111550.0,111540.0,0.396]
[1759097262803,1.54120532,111550.0,111540.0,0.396]
[1759097263612,0.0896169,111540.0,111530.0,0.37521]
[1759097263914,0.11049844,111530.0,111520.0,0.3747]
[1759097264099,1.53377344,111530.0,111520.0,0.3747]
[1759097265910,1.48905072,111530.0,111520.0,0.3747]
[1759097266116,0.0896313,111520.0,111510.0,0.37477847]
[1759097266412,0.4152663,111520.0,111510.0,0.37477847]
[1759097266813,0.4152663,111520.0,111510.0,0.01397847]
[1759097267610,0.4152663,111520.0,111500.0,0.0139]
[1759097267611,0.0896406,111510.0,111500.0,0.0139]
[1759097267808,1.88829128,111510.0,111500.0,0.0139]
[1759097268010,0.11085628,111510.0,111500.0,0.39756]
[1759097268317,1.20181628,111510.0,111500.0,0.79756]
[1759097268518,1.20189475,111510.0,111500.0,0.79756]
[1759097268815,1.15717203,111510.0,111500.0,0.79756]
[1759097269013,1.30607203,111510.0,111500.0,0.7099171]
[1759097269207,0.11026148,111490.0,111480.0,0.3747]
[1759097269415,1.52485495,111490.0,111480.0,0.0139]
[1759097269912,0.43597495,111490.0,111480.0,0.03676]
[1759097270108,1.52365495,111490.0,111480.0,0.03676]
[1759097270613,0.11033995,111490.0,111480.0,0.39756]
[1759097270819,1.19805995,111490.0,111480.0,0.39756]
[1759097271014,1.52369495,111490.0,111480.0,0.03676]
[1759097271215,1.52369495,111490.0,111480.0,0.39756]
[1759097271811,1.47897223,111490.0,111480.0,0.39756]
[1759097272011,1.15333723,111490.0,111480.0,0.39756]
[1759097272306,0.06561723,111490.0,111480.0,0.79756]
[1759097273318,0.39125223,111490.0,111480.0,0.39756]
[1759097274019,0.06561723,111490.0,111480.0,0.39756]
[1759097274211,0.39125223,111490.0,111480.0,0.39756]
[1759097274517,0.06561723,111490.0,111480.0,0.39756]
[1759097274915,0.43597495,111490.0,111480.0,0.39756]
[1759097275621,0.43597495,111490.0,111480.0,0.0139]
[1759097276517,0.0896645,111480.0,111470.0,0.37388]
[1759097276719,1.49417797,111480.0,111470.0,0.39674]
[1759097277213,0.08974297,111480.0,111470.0,0.39674]
[1759097277406,1.16698297,111480.0,111470.0,0.39674]
[1759097277817,0.08974297,111480.0,111470.0,0.39674]
[1759097278017,1.16622297,111480.0,111470.0,0.39674]
[1759097279516,1.49185797,111480.0,111470.0,0.39674]
[1759097279820,1.49185797,111480.0,111470.0,0.37388]
[1759097280215,1.16622297,111480.0,111470.0,0.01308]
[1759097280417,1.48817797,111480.0,111470.0,0.03594]
[1759097281222,1.88817797,111480.0,111470.0,0.01308]
[1759097281427,0.0896719,111470.0,111460.0,0.37388]
[1759097281614,0.43656023,111470.0,111460.0,0.01308]
[1759097282115,0.0896801,111460.0,111450.0,0.37388]
[1759097282314,1.16043857,111460.0,111450.0,0.37388]
[1759097282511,1.48607357,111460.0,111450.0,0.37388]
[1759097284925,0.08975857,111460.0,111450.0,0.79674]
[1759097285121,7.847e-05,111460.0,111450.0,1.2120637]
[1759097285526,0.02117486,111470.0,111460.0,0.03594]
[1759097285726,0.02075857,111470.0,111460.0,1.2120558]
[1759097286027,0.02060578,111490.0,111480.0,0.03594]
[1759097286233,0.02060578,111490.0,111480.0,1.1728397]
[1759097286525,0.11085618,111510.0,111500.0,0.03594]
[1759097286825,0.02121568,111510.0,111500.0,0.39674]
[1759097287129,0.02121568,111510.0,111500.0,0.75754]
[1759097287623,0.11085628,111510.0,111500.0,0.75754]
[1759097288216,0.0896249,111530.0,111500.0,1.5368794]
[1759097288416,0.0896205,111540.0,111530.0,0.03594]
[1759097288727,0.0896205,111540.0,111530.0,0.39674]
[1759097288929,0.4152555,111540.0,111530.0,0.39674]
[1759097290021,0.0896205,111540.0,111530.0,0.79674]
[1759097291225,1.49752892,111550.0,111540.0,0.01308]
[1759097291427,0.02080212,111550.0,111540.0,0.39674]
[1759097291723,0.02080212,111550.0,111540.0,0.79674]
[1759097292121,0.11041022,111550.0,111540.0,0.79674]
[1759097292631,0.02080212,111550.0,111540.0,0.79674]
[1759097293329,0.02080212,111550.0,111540.0,1.122375]
[1759097293736,0.88117988,111570.0,111560.0,0.0371]
[1759097293934,0.11185988,111570.0,111560.0,0.3979]
[1759097294424,0.11185988,111570.0,111560.0,0.7979]
[1759097294725,0.11019752,111570.0,111560.0,1.1587]
[1759097294930,0.11061493,111570.0,111560.0,1.1587]
[1759097295530,0.02101833,111570.0,111560.0,1.1587]
[1759097296433,0.11087797,111570.0,111560.0,1.1587]
[1759097296724,0.0895887,111580.0,111560.0,1.1587]
[1759097296933,0.43650837,111580.0,111570.0,0.3979]
[1759097297334,0.11087337,111580.0,111570.0,0.7979]
[1759097297636,0.02128467,111580.0,111570.0,0.7979]
[1759097297925,1e-08,111590.0,111580.0,0.1023252]
[1759097298131,1e-08,111590.0,111580.0,1.1887602]
[1759097298325,1e-08,111590.0,111580.0,1.14586816]
[1759097298726,1e-08,111590.0,111580.0,2.19218816]
[1759097298924,1e-08,111590.0,111580.0,1.05628296]
[1759097299120,1e-08,111590.0,111580.0,2.19166816]
[1759097299930,1e-08,111590.0,111580.0,1.81718]
[1759097300235,1e-08,111590.0,111580.0,2.09992296]
[1759097300433,1e-08,111590.0,111580.0,1.14586816]
[1759097300822,1e-08,111590.0,111580.0,1.69836296]
[1759097301134,1e-08,111590.0,111580.0,1.5052052]
[1759097301531,1e-08,111590.0,111580.0,1.78794816]
[1759097301936,1e-08,111590.0,111580.0,0.37354]
[1759097302129,0.08957711,111590.0,111580.0,0.39557]
[1759097302330,0.11070538,111590.0,111580.0,0.39557]
[1759097302839,0.13297538,111590.0,111580.0,0.39557]
[1759097303026,0.41571834,111590.0,111580.0,0.39557]
[1759097303227,0.41571834,111590.0,111580.0,0.3608]
[1759097303228,0.82937834,111590.0,111580.0,0.3608]
[1759097306128,0.1255153,111580.0,111570.0,0.3608]
[1759097306333,0.40825826,111580.0,111570.0,0.3608]
[1759097306535,0.1255233,111570.0,111560.0,0.3608]
[1759097306737,0.42890956,111570.0,111560.0,0.3608]
[1759097307129,0.1118713,111560.0,111550.0,0.39557]
[1759097307737,0.80827426,111560.0,111550.0,0.3608]
[1759097308443,0.1255394,111550.0,111540.0,0.3608]
[1759097308742,0.42929186,111550.0,111540.0,0.3608]
[1759097309740,0.82929186,111550.0,111540.0,0.3608]
[1759097310032,0.1255474,111540.0,111530.0,0.3608]
[1759097310238,0.40829036,111540.0,111530.0,0.38283]
[1759097310650,0.02227,111540.0,111530.0,0.38283]
[1759097310935,0.1242829,111550.0,111530.0,0.39557]
[1759097311127,0.1328899,111550.0,111540.0,0.39557]
[1759097311732,0.0432795,111550.0,111540.0,0.39557]
[1759097311933,0.41563176,111550.0,111540.0,0.39557]
[1759097312136,0.41563176,111550.0,111540.0,0.38283]
[1759097312339,0.1255474,111540.0,111530.0,0.3608]
[1759097312536,0.40829036,111540.0,111530.0,0.3608]
[1759097312730,0.80829036,111540.0,111530.0,0.3608]
[1759097313637,0.80829036,111540.0,111530.0,0.38283]
[1759097314225,0.1242827,111550.0,111530.0,0.39557]
[1759097314427,0.1328892,111550.0,111540.0,0.39557]
[1759097314639,0.0432795,111550.0,111540.0,0.39557]
[1759097314842,0.0210095,111550.0,111540.0,0.39557]
[1759097315042,0.41563216,111550.0,111540.0,0.39557]
[1759097315340,0.41563216,111550.0,111540.0,0.38283]
[1759097315534,0.0432795,111550.0,111540.0,0.38283]
[1759097315839,0.0432795,111550.0,111540.0,0.39557]
[1759097316340,0.0210095,111550.0,111540.0,0.39557]
[1759097316940,0.0210095,111550.0,111540.0,0.79557]
[1759097317340,0.0210095,111550.0,111540.0,0.8851888]
[1759097317747,0.0210095,111550.0,111540.0,0.79557]
[1759097318246,0.13289,111550.0,111540.0,0.39557]
[1759097318640,0.0432795,111550.0,111540.0,0.39557]
[1759097319149,0.0210095,111550.0,111540.0,0.39557]
[1759097319537,0.1106206,111550.0,111540.0,0.39557]
[1759097319732,0.1328906,111550.0,111540.0,0.39557]
[1759097321137,0.41563356,111550.0,111540.0,0.38283]
[1759097321332,0.42929356,111550.0,111540.0,0.38283]
[1759097321739,0.0432795,111550.0,111540.0,0.39557]
[1759097322040,0.1328899,111550.0,111540.0,0.39557]
[1759097322636,0.0210095,111550.0,111540.0,0.39557]
[1759097322842,0.1106197,111550.0,111540.0,0.39557]
[1759097323847,0.1328897,111550.0,111540.0,0.39557]
[1759097324540,0.1106197,111550.0,111540.0,0.39557]
[1759097324838,0.1328897,111550.0,111540.0,0.39557]
[1759097325637,0.0210095,111550.0,111540.0,0.8851881]
[1759097326151,0.0210095,111550.0,111540.0,0.79557]
[1759097327247,0.0210095,111550.0,111540.0,0.8851881]
[1759097327449,0.1102386,111570.0,111560.0,0.03477]
[1759097327650,0.1325086,111570.0,111560.0,0.39557]
[1759097328547,0.41525156,111570.0,111560.0,0.39557]
[1759097331148,0.41525156,111570.0,111560.0,0.02203]
[1759097331354,0.1239325,111560.0,111550.0,0.3608]
[1759097331850,0.5239325,111560.0,111550.0,0.3608]
[1759097332056,0.80667546,111560.0,111550.0,0.3608]
[1759097332951,0.80667546,111560.0,111550.0,0.38231]
[1759097333156,0.43886409,111560.0,111550.0,0.38231]
[1759097333340,0.1111425,111560.0,111550.0,0.39493]
[1759097334556,0.44671399,111570.0,111560.0,0.03413]
[1759097334855,0.44671399,111570.0,111560.0,0.39493]
[1759097335049,0.45950399,111570.0,111560.0,0.39493]
[1759097336246,0.44671399,111570.0,111560.0,0.39493]
[1759097337255,0.49498013,111570.0,111560.0,0.39493]
[1759097338251,0.44671399,111570.0,111560.0,0.39493]
[1759097339541,0.49498013,111570.0,111560.0,0.39493]
[1759097340152,0.44671399,111570.0,111560.0,0.39493]
[1759097340451,0.16397103,111570.0,111560.0,0.39493]
[1759097340854,0.05283193,111570.0,111560.0,0.39493]
[1759097341349,0.0206433,111570.0,111560.0,0.4845336]
[1759097341555,0.0206433,111570.0,111560.0,0.8845336]
[1759097341755,0.0206433,111570.0,111560.0,0.79493]
[1759097342052,0.1102388,111570.0,111560.0,0.79493]
[1759097342257,0.0206433,111570.0,111560.0,0.79493]
[1759097342948,0.1102385,111570.0,111560.0,0.79493]
[1759097344351,0.03218863,111580.0,111570.0,0.1022157]
[1759097344657,0.14289961,111590.0,111580.0,0.03413]
[1759097344957,0.41499394,111590.0,111580.0,0.39493]
[1759097345157,0.13225098,111590.0,111580.0,0.39493]
[1759097345853,0.14504098,111590.0,111580.0,0.38231]
[1759097346065,0.42778394,111590.0,111580.0,0.38231]
[1759097346359,0.13225098,111590.0,111580.0,0.39493]
[1759097346550,0.11071098,111590.0,111580.0,0.39493]
[1759097346761,0.13225098,111590.0,111580.0,0.39493]
[1759097346954,0.13225098,111590.0,111570.0,0.3608]
[1759097346955,0.1239183,111580.0,111570.0,0.3608]
[1759097347261,0.43884989,111580.0,111570.0,0.39493]
[1759097347561,0.43884989,111580.0,111570.0,0.38231]
[1759097347747,0.05372863,111580.0,111570.0,0.39493]
[1759097347949,0.14290141,111590.0,111580.0,0.03413]
[1759097348148,0.16444141,111590.0,111580.0,0.39493]
[1759097348348,0.13225278,111590.0,111580.0,0.39493]
[1759097348652,0.41499574,111590.0,111580.0,0.03413]
[1759097348962,0.1239182,111580.0,111570.0,0.38231]
[1759097350053,0.1239182,111580.0,111570.0,0.3608]
[1759097350054,0.80666116,111580.0,111570.0,0.3608]
[1759097350461,0.111136,111570.0,111560.0,0.39493]
[1759097350652,0.13220307,111570.0,111560.0,0.39493]
[1759097351359,0.04260707,111570.0,111560.0,0.39493]
[1759097351552,0.13220297,111570.0,111560.0,0.39493]
[1759097353659,0.1247839,111560.0,111550.0,0.3608]
[1759097353863,0.11172,111540.0,111530.0,0.39538]
[1759097354056,0.13283429,111540.0,111530.0,0.39538]
[1759097354357,0.82865725,111540.0,111530.0,0.3608]
[1759097358362,0.87169877,111540.0,111530.0,0.3608]
[1759097359164,0.94423195,111540.0,111530.0,0.3608]
[1759097360062,1.92427195,111540.0,111530.0,0.3608]
[1759097360264,0.94423195,111540.0,111530.0,0.3836]
[1759097360465,1.92351195,111540.0,111530.0,0.3836]
[1759097360661,0.61844747,111540.0,111530.0,0.3836]
[1759097360963,0.94423195,111540.0,111530.0,0.3836]
[1759097361155,0.61844747,111540.0,111530.0,0.39667]
[1759097361357,0.94423195,111540.0,111530.0,0.39667]
[1759097361954,0.94423195,111540.0,111530.0,0.3836]
[1759097362360,1.92135195,111540.0,111530.0,0.3836]
[1759097363561,0.94423195,111540.0,111530.0,0.3836]
[1759097363860,1.91955195,111540.0,111530.0,0.39667]
[1759097364068,1.91947195,111540.0,111530.0,0.39667]
[1759097364266,1.91947195,111540.0,111530.0,0.3836]
[1759097365355,1.59368747,111540.0,111530.0,0.3836]
[1759097365566,1.91947195,111540.0,111530.0,0.3608]
[1759097365861,0.1244807,111530.0,111520.0,0.36088296]
[1759097366063,0.45026518,111530.0,111520.0,0.36088296]
[1759097366257,0.45026518,111530.0,111520.0,0.38368296]
[1759097366564,0.45026518,111530.0,111520.0,0.39675296]
[1759097366764,0.45026518,111530.0,111520.0,0.36088296]
[1759097366968,1.21106518,111530.0,111520.0,8.296e-05]
[1759097368868,2.18142518,111530.0,111520.0,8.296e-05]
[1759097369071,2.18066518,111530.0,111520.0,8.296e-05]
[1759097369865,0.03485,111510.0,111500.0,0.3608]
[1759097370069,1.35004073,111510.0,111500.0,0.3608]
[1759097370864,1.43976226,111510.0,111500.0,0.3608]
[1759097371672,0.14545778,111510.0,111500.0,0.3608]
[1759097371871,0.47124226,111510.0,111500.0,0.3608]
[1759097372074,1.43740226,111510.0,111500.0,0.3608]
[1759097372375,0.47124226,111510.0,111500.0,0.3608]
[1759097372675,1.43672226,111510.0,111500.0,0.3608]
[1759097373170,0.02187,111500.0,111490.0,0.3836]
[1759097373376,1.31249448,111500.0,111490.0,0.39667]
[1759097373570,0.34765448,111500.0,111490.0,0.39667]
[1759097373764,1.31249448,111500.0,111490.0,0.39667]
[1759097373969,0.34765448,111500.0,111490.0,0.39667]
[1759097374778,1.00607108,111510.0,111500.0,0.03587]
[1759097374971,1.00607108,111510.0,111500.0,0.39667]
[1759097375371,1.00615478,111510.0,111500.0,0.39667]
[1759097375570,1.42158596,111510.0,111500.0,0.39667]
[1759097376071,0.36869926,111510.0,111500.0,0.39667]
[1759097376272,1.42082596,111510.0,111500.0,0.39667]
[1759097376477,1.42072128,111510.0,111500.0,0.39667]
[1759097376979,1.4203747,111510.0,111500.0,0.39667]
[1759097377177,0.04246352,111510.0,111500.0,0.79667]
[1759097377379,0.02059352,111510.0,111500.0,0.8863248]
[1759097377575,0.02059352,111510.0,111500.0,1.21210928]
[1759097378076,0.02066864,111510.0,111500.0,1.21210928]
[1759097379084,0.02066864,111510.0,111500.0,1.23573552]
[1759097379284,0.02096642,111510.0,111500.0,1.21210928]
[1759097379584,0.02096642,111510.0,111500.0,0.50995104]
[1759097380082,0.13248312,111510.0,111500.0,0.42029624]
[1759097380484,0.13248312,111510.0,111500.0,0.39667]
[1759097380885,0.11159153,111510.0,111500.0,0.4863248]
[1759097381281,0.02194483,111510.0,111500.0,0.4863248]
[1759097381482,0.04323076,111510.0,111500.0,0.4863248]
[1759097381686,0.13287746,111510.0,111500.0,0.4863248]
[1759097382181,0.02136076,111510.0,111500.0,0.4863248]
[1759097382382,0.02136076,111510.0,111500.0,2.19221552]
[1759097382582,0.02087076,111510.0,111500.0,2.19221552]
[1759097382885,0.02087076,111510.0,111500.0,0.90995104]
[1759097383081,0.02087076,111510.0,111500.0,1.23573552]
[1759097383383,0.02087076,111510.0,111500.0,2.19157552]
[1759097383578,0.02087076,111510.0,111500.0,1.23573552]
[1759097383579,7.483e-05,111510.0,111500.0,1.23573552]
[1759097383779,7.483e-05,111510.0,111500.0,2.19089552]
[1759097384986,7.483e-05,111510.0,111500.0,2.19053552]
[1759097385393,0.08972153,111510.0,111500.0,1.37437624]
[1759097385688,7.483e-05,111510.0,111500.0,0.50995104]
[1759097386282,0.02194483,111510.0,111500.0,0.50995104]
[1759097386684,0.52194483,111510.0,111500.0,0.50995104]
[1759097386885,0.52194483,111510.0,111500.0,0.4863248]
[1759097387889,0.50007483,111510.0,111500.0,0.83573552]
[1759097388193,0.50007483,111510.0,111500.0,0.50995104]
[1759097388386,0.50007483,111510.0,111500.0,0.83573552]
[1759097388594,0.50007483,111510.0,111500.0,1.23573552]
[1759097388797,0.50007483,111510.0,111500.0,0.90995104]
[1759097388988,0.50007483,111510.0,111500.0,1.23573552]
[1759097389482,0.50007483,111510.0,111500.0,1.26739945]
[1759097389888,0.50007483,111510.0,111500.0,0.94161497]
[1759097390086,0.50007483,111510.0,111500.0,1.26739945]
[1759097390488,0.48599745,111510.0,111500.0,1.24377321]
[1759097390687,0.48599745,111510.0,111500.0,1.29171742]
[1759097390887,0.48624376,111510.0,111500.0,1.29171742]
[1759097391491,0.41499333,111510.0,111500.0,1.29171742]
[1759097391684,0.03339216,111510.0,111500.0,1.27864742]
[1759097391885,0.01293,111510.0,111500.0,1.24698349]
[1759097392296,0.01293,111510.0,111500.0,0.92119901]
[1759097392592,0.03339216,111510.0,111500.0,1.24698349]
[1759097392994,0.01293,111510.0,111500.0,1.24698349]
[1759097393789,0.03373613,111510.0,111500.0,1.24698349]
[1759097394393,0.03373613,111510.0,111500.0,2.19502349]
[1759097394893,0.03373613,111510.0,111500.0,1.24698349]
[1759097395198,0.03362415,111510.0,111500.0,2.19290349]
[1759097395401,0.03362415,111510.0,111500.0,1.86711901]
[1759097395595,0.03362415,111510.0,111500.0,2.19290349]
[1759097395896,0.01293,111510.0,111500.0,2.19290349]
[1759097396095,0.03362415,111510.0,111500.0,2.19290349]
[1759097396992,0.01293,111510.0,111500.0,1.24698349]
[1759097397199,0.03390313,111510.0,111500.0,2.18994349]
[1759097397600,0.03352633,111510.0,111500.0,2.18994349]
[1759097397800,0.03352633,111510.0,111500.0,1.24698349]
[1759097398199,0.03352633,111510.0,111500.0,2.18910349]
[1759097398398,0.03360822,111510.0,111500.0,2.18910349]
[1759097398895,0.01293,111510.0,111500.0,1.24698349]
[1759097399096,0.03360822,111510.0,111500.0,0.52119901]
[1759097399301,0.05484822,111510.0,111500.0,1.77289095]
[1759097399503,0.05466501,111510.0,111500.0,1.77289095]
[1759097399902,0.03417,111510.0,111500.0,1.77289095]
[1759097400603,0.01293,111510.0,111500.0,1.44710647]
[1759097400804,0.03342501,111510.0,111500.0,1.77289095]
[1759097401402,0.03342501,111510.0,111500.0,2.17289095]
[1759097401701,0.03379156,111510.0,111500.0,2.17289095]
[1759097402094,0.01293,111520.0,111510.0,0.0896464]
[1759097402394,0.0337201,111530.0,111520.0,0.0896383]
[1759097402600,0.0337201,111530.0,111520.0,1.47223803]
[1759097402992,0.01293,111540.0,111530.0,0.0896303]
[1759097403202,0.01293,111540.0,111530.0,0.83181255]
[1759097403397,0.03405966,111540.0,111530.0,0.80003703]
[1759097403604,0.03405966,111540.0,111530.0,1.74211703]
[1759097403996,0.05529966,111540.0,111530.0,0.5468496]
[1759097404208,0.45529966,111540.0,111530.0,0.47425255]
[1759097404399,0.45523203,111540.0,111530.0,1.41629255]
[1759097404599,0.45523203,111540.0,111530.0,1.74207703]
[1759097404800,0.45523203,111540.0,111530.0,1.41629255]
[1759097405107,0.4552313,111540.0,111530.0,1.74207703]
[1759097405309,0.4552313,111540.0,111530.0,0.80003703]
[1759097405494,0.54475735,111540.0,111530.0,0.47425255]
[1759097405698,0.45513505,111540.0,111530.0,1.41629255]
[1759097405898,0.45513505,111540.0,111530.0,0.4504303]
[1759097406204,0.45513505,111540.0,111530.0,1.3924703]
[1759097406398,0.43417,111540.0,111530.0,1.3924703]
[1759097406603,0.45483121,111540.0,111530.0,0.3608]
[1759097406813,0.45483121,111540.0,111530.0,1.3924703]
[1759097407399,0.45483121,111540.0,111530.0,1.3924303]
[1759097407709,0.45477076,111540.0,111530.0,1.3924303]
[1759097407912,0.43417,111540.0,111530.0,1.3924303]
[1759097408208,0.45477076,111540.0,111530.0,1.3924303]
[1759097408795,0.45539108,111540.0,111530.0,1.3924303]
[1759097409003,0.45539108,111540.0,111530.0,0.4504303]
[1759097409203,0.45539108,111540.0,111530.0,1.3924303]
[1759097409405,0.45539108,111540.0,111530.0,0.4504303]
[1759097409601,0.45539108,111540.0,111530.0,1.3924303]
[1759097409805,0.45464187,111540.0,111530.0,1.3924303]
[1759097410906,0.45544093,111540.0,111530.0,1.3924303]
[1759097411106,0.45544093,111540.0,111530.0,0.4504303]
[1759097411307,0.45544093,111540.0,111530.0,1.41622619]
[1759097412010,0.45521054,111540.0,111530.0,1.41622619]
[1759097412713,0.03397054,111540.0,111530.0,1.74201067]
[1759097413102,0.0335965,111540.0,111530.0,1.74201067]
[1759097413516,0.0558965,111540.0,111530.0,1.41622619]
[1759097413706,0.03523,111540.0,111530.0,1.41622619]
[1759097413905,0.0558965,111540.0,111530.0,1.41622619]
[1759097414102,0.03523,111540.0,111530.0,1.41622619]
[1759097414307,0.05607324,111540.0,111530.0,0.47426619]
[1759097414506,0.03523,111540.0,111530.0,1.41622619]
[1759097414707,0.05607324,111540.0,111530.0,1.41622619]
[1759097414907,0.03523,111540.0,111530.0,1.41622619]
[1759097415103,0.03523,111540.0,111530.0,0.47426619]
[1759097415414,0.87148002,111540.0,111530.0,1.30272]
[1759097415911,0.87148002,111540.0,111530.0,0.3608]
[1759097417314,0.1251103,111530.0,111520.0,0.3608]
[1759097418115,0.45089478,111530.0,111520.0,0.3608]
[1759097418414,0.36126448,111530.0,111520.0,0.4504383]
[1759097418609,0.03548,111530.0,111520.0,0.4504383]
[1759097419307,0.36126448,111530.0,111520.0,0.4504383]
[1759097419505,0.45089478,111530.0,111520.0,0.3608]
[1759097420114,0.03548,111530.0,111520.0,0.4504383]
[1759097421515,0.1251103,111530.0,111520.0,0.3608]
[1759097421718,0.03548,111530.0,111520.0,0.4504384]
[1759097422415,0.1251103,111530.0,111520.0,0.3608]
[1759097422617,0.1251103,111530.0,111520.0,0.4504384]
[1759097422618,0.03548,111530.0,111520.0,0.4504384]
[1759097424013,0.8082266,111530.0,111520.0,0.3608]
[1759097426419,0.5251103,111530.0,111520.0,0.3608]
[1759097426717,0.8082266,111530.0,111520.0,0.3608]
[1759097427018,0.5251103,111530.0,111520.0,0.3608]
[1759097427214,0.8082266,111530.0,111520.0,0.3608]
[1759097429223,0.14677566,111520.0,111510.0,0.3608]
[1759097429520,0.1259445,111510.0,111500.0,0.3608]
[1759097429817,0.4090608,111510.0,111500.0,0.3608]
[1759097430218,0.1259525,111500.0,111490.0,0.3608]
[1759097430423,0.14643832,111490.0,111480.0,0.3608]
[1759097430610,0.42955462,111490.0,111480.0,0.3608]
[1759097431317,1.37131462,111490.0,111480.0,0.3608]
[1759097431815,1.37131462,111490.0,111480.0,0.4504702]
[1759097431816,0.05677772,111490.0,111480.0,0.4504702]
[1759097432023,0.03424772,111490.0,111480.0,0.8504702]
[1759097432318,0.03424772,111490.0,111480.0,1.1335865]
[1759097432720,0.01377,111490.0,111480.0,1.15742239]
[1759097432921,0.02153448,111490.0,111480.0,1.15742239]
[1759097433117,0.02153448,111490.0,111480.0,0.87430609]
[1759097433322,0.02153448,111490.0,111480.0,1.16536202]
[1759097433323,0.02078236,111490.0,111480.0,1.16536202]
[1759097433819,0.02078236,111490.0,111480.0,1.23762583]
[1759097434620,0.01377,111500.0,111490.0,0.0896606]
[1759097434819,0.01377,111500.0,111490.0,1.73093222]